bitfinex-derivatives/quotes_SOLF0:USTF0_20250821
["timestamp","ask_amount","ask_price","bid_price","bid_amount"]
[1755796268488,4.12143759,180.34,180.29,2.88]
[1755796268693,4.12143759,180.33,180.31,0.03612143]
[1755796268892,2.82,180.36,180.31,0.03612143]
[1755796269092,4.12274209,180.35,180.28,7.93753874]
[1755796269294,2.82,180.36,180.28,7.93753874]
[1755796269596,4.12345778,180.35,180.28,7.93753874]
[1755796269797,4.12345778,180.34,180.28,7.93753874]
[1755796269989,2.82,180.36,180.28,7.93753874]
[1755796270191,4.12288489,180.35,180.28,7.93753874]
[1755796270388,4.12288489,180.34,180.28,7.93753874]
[1755796270589,6.94288489,180.33,180.24,2.88]
[1755796270789,4.12288489,180.32,180.24,2.88]
[1755796272295,6.94288489,180.31,180.18,141.66]
[1755796272493,4.12288489,180.3,180.21,2.88]
[1755796272802,4.12288489,180.3,180.26,5.05753874]
[1755796273000,2.82,180.35,180.27,2.88]
[1755796273202,4.12674587,180.34,180.27,2.88]
[1755796273400,4.12674587,180.33,180.27,2.88]
[1755796273600,4.12674587,180.32,180.28,2.88]
[1755796273797,2.82,180.35,180.28,2.88]
[1755796273997,4.12924336,180.34,180.25,5.05753874]
[1755796274198,4.12924336,180.33,180.25,5.05753874]
[1755796274398,4.12924336,180.32,180.25,5.05753874]
[1755796274598,4.12924336,180.31,180.25,5.05753874]
[1755796275500,4.12924336,180.31,180.24,2.88]
[1755796275700,4.12924336,180.3,180.24,2.88]
[1755796275898,4.12924336,180.29,180.25,2.88]
[1755796276202,2.82,180.35,180.25,7.93753874]
[1755796276403,4.13298106,180.34,180.25,7.93753874]
[1755796276699,4.13298106,180.33,180.25,7.93753874]
[1755796276899,4.13298106,180.32,180.25,7.93753874]
[1755796277099,4.13298106,180.31,180.25,13.48603874]
[1755796277303,4.13298106,180.3,180.22,7.93753874]
[1755796277503,2.82,180.32,180.22,7.93753874]
[1755796277804,4.13531125,180.31,180.22,7.93753874]
[1755796278003,4.13531125,180.3,180.22,7.93753874]
[1755796278204,4.13531125,180.29,180.22,7.93753874]
[1755796278403,2.82,180.32,180.22,7.93753874]
[1755796278702,2.82,180.3,180.22,7.93753874]
[1755796278902,4.13595197,180.29,180.22,7.93753874]
[1755796279107,4.13595197,180.28,180.22,7.93753874]
[1755796279304,4.13595197,180.27,180.22,7.93753874]
[1755796279503,2.82,180.32,180.22,7.93753874]
[1755796279701,2.82,180.3,180.22,7.93753874]
[1755796279902,4.13728317,180.29,180.22,7.93753874]
[1755796280794,4.13728317,180.29,180.22,13.48693874]
[1755796281398,4.13728317,180.29,180.22,7.93753874]
[1755796282003,4.13728317,180.29,180.22,2.88]
[1755796282410,4.13728317,180.29,180.19,10.60783874]
[1755796282613,6.95728317,180.28,180.19,13.48783874]
[1755796282808,4.13728317,180.27,180.19,13.48783874]
[1755796283113,4.13728317,180.27,180.19,2.88]
[1755796283313,7.24728317,180.26,180.19,2.88]
[1755796283516,4.13728317,180.25,180.19,2.88]
[1755796283711,4.13728317,180.25,180.16,5.05753874]
[1755796284213,4.13728317,180.25,180.17,2.85]
[1755796284608,4.13728317,180.25,180.19,5.05753874]
[1755796284808,3.11,180.3,180.2,2.85]
[1755796285008,4.1402775,180.29,180.21,5.5498]
[1755796285212,4.1402775,180.28,180.22,5.05753874]
[1755796285412,4.1402775,180.27,180.23,2.85]
[1755796285611,3.11,180.3,180.24,2.85]
[1755796285911,4.14054183,180.29,180.22,5.05753874]
[1755796286107,4.14054183,180.28,180.25,2.85]
[1755796286306,3.11,180.33,180.25,3.10220629]
[1755796286515,4.14087645,180.32,180.25,3.10220629]
[1755796286814,3.11,180.3,180.19,2.85]
[1755796287013,3.11,180.3,180.21,8.65180629]
[1755796287014,4.14087645,180.29,180.21,8.65180629]
[1755796287214,4.14087645,180.28,180.21,3.10220629]
[1755796287418,6.10544736,180.33,180.19,2.85]
[1755796287419,7.25087645,180.27,180.19,2.85]
[1755796287620,7.25087645,180.26,180.16,5.95220629]
[1755796287915,4.14087645,180.25,180.16,5.95220629]
[1755796288221,3.11,180.23,180.16,2.85]
[1755796288409,3.11,180.23,180.17,3.10220629]
[1755796288718,3.11,180.29,180.19,11.50240629]
[1755796288908,4.14038044,180.28,180.19,5.95220629]
[1755796289115,4.14038044,180.27,180.19,5.95220629]
[1755796289316,4.14038044,180.26,180.19,5.95220629]
[1755796289614,6.21220629,180.29,180.19,2.85]
[1755796289816,9.0130907,180.35,180.15,372.96]
[1755796289817,4.14046281,180.28,180.23,3.10220629]
[1755796290116,4.14046281,180.27,180.25,5.95220629]
[1755796290417,3.11,180.32,180.25,5.95220629]
[1755796290611,3.11,180.29,180.21,2.85]
[1755796290818,4.14169594,180.28,180.21,2.85]
[1755796291012,4.14169594,180.27,180.21,2.85]
[1755796291214,3.11,180.27,180.19,3.10220629]
[1755796291414,4.14068845,180.26,180.18,141.54]
[1755796291611,3.11,180.27,180.19,3.10220629]
[1755796291812,3.11,180.31,180.22,3.10220629]
[1755796292011,4.14144309,180.3,180.22,3.10220629]
[1755796292213,4.14144309,180.29,180.22,3.10220629]
[1755796292511,3.11,180.31,180.25,3.10220629]
[1755796292512,4.14144309,180.28,180.25,3.10220629]
[1755796292718,0.03700123,180.27,180.26,2.85]
[1755796293419,3.11,180.34,180.26,8.3981]
[1755796293612,4.14306765,180.33,180.3,2.85]
[1755796293814,3.11,180.38,180.29,3.10220629]
[1755796294016,3.11,180.38,180.31,3.10220629]
[1755796294017,4.14226613,180.37,180.31,3.10220629]
[1755796294218,4.14226613,180.36,180.31,3.10220629]
[1755796294424,3.11,180.42,180.34,3.10220629]
[1755796294623,3.11,180.42,180.36,3.10220629]
[1755796294624,4.14291631,180.41,180.36,3.10220629]
[1755796294824,4.14291631,180.4,180.36,5.95220629]
[1755796295115,4.14291631,180.39,180.36,5.95220629]
[1755796295317,3.11,180.42,180.36,5.95220629]
[1755796295521,9.0130907,180.48,180.36,5.95220629]
[1755796295522,4.14130973,180.41,180.36,0.03597763]
[1755796295718,3.11,180.39,180.36,0.03597763]
[1755796295921,3.11,180.37,180.27,2.85]
[1755796296119,4.14083122,180.36,180.28,3.10220629]
[1755796296416,3.11,180.37,180.27,2.85]
[1755796296611,4.13928043,180.36,180.27,2.85]
[1755796296913,3.11,180.37,180.27,2.85]
[1755796296914,4.13928043,180.35,180.27,2.85]
[1755796297119,4.13928043,180.34,180.27,2.85]
[1755796297319,3.11,180.37,180.27,2.85]
[1755796297521,4.13859568,180.36,180.27,2.85]
[1755796297723,4.13859568,180.35,180.27,2.85]
[1755796297927,3.11,180.37,180.27,2.85]
[1755796298120,4.13873519,180.36,180.27,2.85]
[1755796298318,3.11,180.37,180.27,2.85]
[1755796298319,4.13873519,180.35,180.27,2.85]
[1755796298515,3.11,180.37,180.29,5.05382613]
[1755796298820,5.05382613,180.43,180.3,2.85]
[1755796298821,4.13916467,180.36,180.3,2.85]
[1755796299025,3.11,180.41,180.3,2.85]
[1755796299222,4.13871326,180.4,180.3,2.85]
[1755796299418,4.13871326,180.39,180.3,2.85]
[1755796299624,3.11,180.41,180.3,2.85]
[1755796299625,4.13871326,180.38,180.3,2.85]
[1755796299826,4.13871326,180.37,180.27,7.90382613]
[1755796300023,7.24871326,180.36,180.27,7.90382613]
[1755796300221,4.13821677,180.35,180.27,7.90382613]
[1755796300418,4.13713377,180.34,180.27,2.85]
[1755796300623,4.13713377,180.33,180.27,2.85]
[1755796300817,3.11,180.36,180.27,2.85]
[1755796301021,4.13719584,180.35,180.27,2.85]
[1755796301220,4.13719584,180.34,180.27,2.85]
[1755796301425,4.13719584,180.33,180.24,10.60252613]
[1755796301621,3.11,180.36,180.24,10.60252613]
[1755796301927,4.1386062,180.35,180.24,10.60252613]
[1755796302225,4.1386062,180.34,180.24,10.60252613]
[1755796302527,7.2486062,180.33,180.23,8.3992]
[1755796302725,4.1386062,180.32,180.23,7.90382613]
[1755796303722,4.1386062,180.32,180.23,13.45302613]
[1755796304124,4.1386062,180.32,180.23,7.90382613]
[1755796304723,3.11,180.33,180.23,7.90382613]
[1755796304724,4.1386062,180.31,180.23,7.90382613]
[1755796304927,4.1386062,180.3,180.23,2.85]
[1755796305130,4.1386062,180.29,180.22,141.48]
[1755796305624,3.11,180.28,180.22,141.48]
[1755796305825,4.1386062,180.27,180.22,141.48]
[1755796306021,3.11,180.26,180.22,141.48]
[1755796307325,4.15160125,180.25,180.22,141.48]
[1755796307525,3.11,180.26,180.22,141.48]
[1755796307729,6.10544736,180.32,180.22,144.33]
[1755796307929,3.11,180.3,180.22,144.33]
[1755796308229,4.15229683,180.29,180.22,144.33]
[1755796308423,4.15229683,180.28,180.22,144.33]
[1755796308618,4.15229683,180.27,180.22,141.48]
[1755796308824,3.11,180.3,180.23,2.85]
[1755796309133,4.15256133,180.29,180.23,7.90382613]
[1755796309320,4.15256133,180.28,180.23,7.90382613]
[1755796309526,4.15256133,180.27,180.25,2.85]
[1755796309831,9.21544736,180.34,180.25,2.85]
[1755796310029,4.15432025,180.33,180.25,2.85]
[1755796310328,4.15556601,180.32,180.25,2.85]
[1755796310531,4.15556601,180.31,180.25,2.85]
[1755796310724,4.15556601,180.3,180.25,2.85]
[1755796310925,4.15556601,180.29,180.25,2.85]
[1755796311225,4.15556601,180.28,180.25,2.85]
[1755796311426,4.15556601,180.27,180.25,2.85]
[1755796311623,9.21544736,180.34,180.25,2.85]
[1755796311828,4.1570506,180.33,180.25,2.85]
[1755796312023,4.1570506,180.32,180.25,2.85]
[1755796312228,4.1570506,180.31,180.25,2.85]
[1755796312528,3.11,180.34,180.23,10.60272613]
[1755796312529,4.1570506,180.3,180.23,10.60272613]
[1755796312724,4.1570506,180.29,180.28,3.1]
[1755796312926,6.10544736,180.37,180.29,3.1]
[1755796313127,6.96866443,180.36,180.26,5.05382613]
[1755796313429,4.15866443,180.35,180.26,5.05382613]
[1755796313629,4.15866443,180.34,180.26,5.05382613]
[1755796313830,4.15866443,180.33,180.26,5.05382613]
[1755796314030,4.15866443,180.32,180.26,5.05382613]
[1755796314228,4.15866443,180.31,180.26,5.05382613]
[1755796314428,2.81,180.36,180.27,3.1]
[1755796314631,4.15898992,180.35,180.27,3.1]
[1755796314833,4.15898992,180.34,180.27,3.1]
[1755796315027,5.5463,180.32,180.27,3.1]
[1755796315339,4.15898992,180.31,180.3,3.1]
[1755796315631,4.15898992,180.35,180.27,3.1]
[1755796315831,4.15898992,180.34,180.27,3.1]
[1755796316036,4.15898992,180.33,180.27,3.1]
[1755796316222,4.15898992,180.32,180.26,10.60172613]
[1755796316527,2.81,180.36,180.28,3.1]
[1755796316834,4.15923529,180.35,180.28,3.1]
[1755796317037,2.81,180.33,180.25,8.15382613]
[1755796317333,4.15923529,180.32,180.25,8.15382613]
[1755796317631,4.15923529,180.31,180.25,8.15382613]
[1755796317829,4.15923529,180.3,180.26,3.1]
[1755796318034,2.81,180.33,180.26,3.1]
[1755796318231,4.15851326,180.32,180.26,3.1]
[1755796318426,2.81,180.37,180.27,3.1]
[1755796318633,4.15885668,180.36,180.27,3.1]
[1755796318930,4.15885668,180.35,180.27,3.1]
[1755796319125,4.15885668,180.34,180.27,8.6477]
[1755796319325,4.15885668,180.33,180.29,3.1]
[1755796319531,4.15885668,180.32,180.25,5.05382613]
[1755796319735,2.81,180.35,180.26,3.1]
[1755796319935,4.15868606,180.34,180.26,3.1]
[1755796320134,4.15868606,180.33,180.26,3.1]
[1755796320333,4.15868606,180.32,180.26,3.1]
[1755796320534,2.81,180.35,180.26,3.1]
[1755796320732,4.15761962,180.34,180.29,3.1]
[1755796320933,4.15761962,180.33,180.3,3.1]
[1755796321240,2.81,180.39,180.3,3.1]
[1755796321436,4.15750185,180.38,180.3,3.1]
[1755796321633,4.15750185,180.37,180.32,3.1]
[1755796321838,2.81,180.43,180.34,5.05382613]
[1755796322037,4.15795741,180.42,180.37,5.05382613]
[1755796322234,4.15795741,180.41,180.4,3.1]
[1755796322535,2.81,180.48,180.4,3.1]
[1755796322735,4.15684668,180.47,180.4,8.15382613]
[1755796323036,4.15684668,180.46,180.4,8.15382613]
[1755796323233,2.81,180.49,180.4,8.15382613]
[1755796323433,9.69443488,180.48,180.4,8.15382613]
[1755796323629,2.81,180.49,180.4,8.15382613]
[1755796323838,4.15355481,180.48,180.4,8.15382613]
[1755796324037,5.5411,180.49,180.42,3.1]
[1755796324240,2.81,180.53,180.42,3.1]
[1755796324435,2.81,180.51,180.42,3.1]
[1755796324637,2.81,180.46,180.36,3.1]
[1755796324833,2.81,180.46,180.37,5.05382613]
[1755796326338,5.5433,180.42,180.37,5.05382613]
[1755796326643,2.81,180.46,180.33,3.1]
[1755796326842,4.14185819,180.45,180.33,3.1]
[1755796327044,6.95185819,180.44,180.33,3.1]
[1755796327242,0.03873912,180.41,180.33,3.1]
[1755796327642,2.81,180.4,180.37,0.04033278]
[1755796328643,0.03873912,180.41,180.37,0.04033278]
[1755796328845,0.03873912,180.41,180.37,3.14033278]
[1755796329246,0.03873912,180.41,180.38,3.1]
[1755796329446,0.03873912,180.41,180.39,3.1]
[1755796330242,0.03873912,180.41,180.4,3.1]
[1755796331244,2.81,180.51,180.4,3.1]
[1755796331544,2.81,180.51,180.37,0.04033278]
[1755796331545,4.13979706,180.5,180.43,3.1]
[1755796331740,6.10544736,180.57,180.45,5.05382613]
[1755796331945,5.05382613,180.6,180.46,3.1]
[1755796331946,2.81,180.55,180.46,3.1]
[1755796332151,4.14044644,180.54,180.48,5.05382613]
[1755796332442,4.14044644,180.54,180.48,10.59492613]
[1755796332644,2.81,180.59,180.49,3.14052638]
[1755796332851,4.1392482,180.58,180.49,3.14052638]
[1755796333045,4.1392482,180.57,180.49,3.14052638]
[1755796333247,138.06691683,180.65,180.49,0.04052638]
[1755796333248,4.1392482,180.56,180.49,0.04052638]
[1755796333549,2.81,180.56,180.49,0.04052638]
[1755796333745,4.13568075,180.55,180.46,5.05382613]
[1755796334049,2.81,180.56,180.51,0.04046074]
[1755796334239,4.13366778,180.55,180.51,0.04046074]
[1755796334439,2.81,180.56,180.51,0.04046074]
[1755796335042,11.15927349,180.62,180.51,0.04046074]
[1755796335250,2.81,180.6,180.51,0.04046074]
[1755796335440,4.12946471,180.59,180.49,5.05382613]
[1755796335642,6.93946471,180.58,180.49,5.05382613]
[1755796335845,4.12946471,180.57,180.54,0.04034286]
[1755796336043,2.81,180.55,180.54,0.04034286]
[1755796336247,6.93946471,180.55,180.47,5.05382613]
[1755796336453,4.12946471,180.54,180.44,8.15382613]
[1755796336652,2.81,180.55,180.44,8.15382613]
[1755796336951,4.1222334,180.54,180.44,8.15382613]
[1755796337154,4.12111444,180.53,180.44,8.15382613]
[1755796337349,2.81,180.55,180.47,5.05382613]
[1755796337550,4.12126255,180.54,180.47,8.15382613]
[1755796337752,2.81,180.55,180.47,8.15382613]
[1755796337953,4.1214296,180.54,180.47,8.15382613]
[1755796338155,2.81,180.55,180.47,8.15382613]
[1755796338654,4.11963138,180.54,180.47,8.15382613]
[1755796338854,2.81,180.55,180.47,8.15382613]
[1755796339052,4.11985327,180.54,180.47,8.15382613]
[1755796339258,2.81,180.55,180.47,8.15382613]
[1755796339447,4.11811599,180.54,180.47,8.15382613]
[1755796339647,4.11827708,180.53,180.47,8.15382613]
[1755796339848,2.81,180.55,180.47,8.15382613]
[1755796340047,4.11949934,180.54,180.47,8.15382613]
[1755796340252,2.81,180.59,180.47,8.15382613]
[1755796340453,4.11751049,180.58,180.47,8.15382613]
[1755796340752,6.10544736,180.61,180.47,8.15382613]
[1755796340753,2.81,180.56,180.47,8.15382613]
[1755796340952,4.11751049,180.55,180.47,8.15382613]
[1755796342150,4.11751049,180.55,180.47,3.1]
[1755796342355,4.11751049,180.55,180.45,5.05382613]
[1755796342862,6.91751049,180.54,180.45,5.05382613]
[1755796343056,4.11751049,180.53,180.45,5.05382613]
[1755796343254,2.8,180.51,180.43,3.1]
[1755796344055,2.8,180.56,180.48,5.05382613]
[1755796344259,4.11192644,180.55,180.48,5.05382613]
[1755796344556,4.11192644,180.54,180.48,5.05382613]
[1755796344756,4.11192644,180.53,180.48,5.05382613]
[1755796344958,2.8,180.56,180.48,5.05382613]
[1755796345159,4.11402754,180.55,180.48,5.05382613]
[1755796345454,4.11402754,180.54,180.48,5.05382613]
[1755796345755,2.8,180.56,180.48,5.05382613]
[1755796345955,4.11396823,180.55,180.48,5.05382613]
[1755796346156,4.11396823,180.54,180.46,2.84]
[1755796346359,4.11396823,180.53,180.46,2.84]
[1755796346557,2.8,180.54,180.46,2.84]
[1755796346754,4.1141922,180.53,180.46,2.84]
[1755796346955,2.8,180.54,180.46,2.84]
[1755796347156,4.114325,180.53,180.46,2.84]
[1755796347355,4.1141247,180.52,180.46,2.84]
[1755796347551,2.8,180.54,180.42,7.89382613]
[1755796347756,4.11281525,180.53,180.42,149.05382613]
[1755796347960,6.91281525,180.52,180.44,5.5425]
[1755796348159,4.11281525,180.51,180.44,5.5425]
[1755796348557,2.8,180.52,180.43,5.05382613]
[1755796348858,4.11337339,180.51,180.43,5.05382613]
[1755796349156,4.11337339,180.5,180.43,5.05382613]
[1755796349349,2.8,180.52,180.43,5.05382613]
[1755796349554,4.11497734,180.51,180.43,10.59652613]
[1755796349752,2.8,180.52,180.43,5.05382613]
[1755796350252,2.8,180.52,180.44,5.5425]
[1755796351262,4.11986952,180.51,180.42,149.05382613]
[1755796351459,2.8,180.52,180.45,5.05382613]
[1755796352265,2.8,180.52,180.45,10.59592613]
[1755796352963,2.8,180.56,180.46,2.84]
[1755796353161,4.1237961,180.55,180.46,2.84]
[1755796353362,4.1237961,180.54,180.48,5.5412]
[1755796353658,4.1237961,180.53,180.49,2.84]
[1755796353862,2.8,180.56,180.49,2.84]
[1755796354063,4.12682134,180.55,180.49,2.84]
[1755796354256,4.12682134,180.54,180.49,2.84]
[1755796354562,4.12682134,180.53,180.49,2.84]
[1755796356472,4.12682134,180.53,180.48,7.89382613]
[1755796356661,4.12682134,180.52,180.5,2.84]
[1755796356867,8.90544736,180.58,180.5,2.84]
[1755796357166,2.8,180.56,180.48,5.05382613]
[1755796357364,4.13592797,180.55,180.48,5.05382613]
[1755796357563,4.13592797,180.54,180.45,7.89382613]
[1755796357866,4.13592797,180.53,180.46,141.12]
[1755796358169,2.8,180.51,180.43,141.12]
[1755796358362,4.13592797,180.5,180.43,141.12]
[1755796358562,4.13592797,180.49,180.43,143.96]
[1755796358757,4.13592797,180.48,180.44,2.84]
[1755796358964,2.8,180.51,180.45,2.84]
[1755796359267,4.14059268,180.5,180.45,2.84]
[1755796359468,4.14059268,180.49,180.45,2.84]
[1755796359668,4.14059268,180.48,180.43,141.12]
[1755796359864,8.90544736,180.54,180.45,7.89382613]
[1755796360061,4.14412915,180.53,180.45,7.89382613]
[1755796360265,4.14738318,180.52,180.45,7.89382613]
[1755796360467,4.14738318,180.51,180.46,5.5419]
[1755796360669,4.14738318,180.5,180.46,5.5419]
[1755796360870,4.14738318,180.49,180.48,2.84]
[1755796362572,6.10544736,180.55,180.48,7.89382613]
[1755796364073,6.10544736,180.54,180.48,7.89382613]
[1755796364872,6.10544736,180.55,180.48,7.89382613]
[1755796365173,6.10544736,180.55,180.48,13.43522613]
[1755796365369,6.10544736,180.55,180.48,7.89382613]
[1755796365569,6.10544736,180.54,180.45,141.08]
[1755796365770,2.8,180.53,180.45,141.08]
[1755796365970,8.90544736,180.53,180.45,141.08]
[1755796366572,6.10544736,180.53,180.46,2.84]
[1755796366772,6.10544736,180.53,180.47,5.05382613]
[1755796366976,6.10544736,180.54,180.47,5.05382613]
[1755796367573,6.10544736,180.54,180.5,5.05382613]
[1755796367772,6.10544736,180.56,180.5,5.05382613]
[1755796367971,6.10544736,180.58,180.5,5.05382613]
[1755796368174,8.90544736,180.58,180.5,5.05382613]
[1755796368572,2.8,180.58,180.5,5.05382613]
[1755796368769,2.8,180.58,180.5,10.59442613]
[1755796369275,2.8,180.58,180.5,5.05382613]
[1755796370168,2.8,180.58,180.5,10.59452613]
[1755796370373,2.8,180.58,180.5,5.05382613]
[1755796370778,6.10544736,180.6,180.53,5.05382613]
[1755796370972,6.10544736,180.61,180.54,2.84]
[1755796371175,6.10544736,180.62,180.54,8.3795]
[1755796371378,8.90544736,180.63,180.54,8.3795]
[1755796371574,2.8,180.63,180.54,8.3795]
[1755796371975,2.8,180.63,180.54,2.84]
[1755796374078,2.8,180.63,180.55,5.5389]
[1755796374280,2.8,180.63,180.56,5.05382613]
[1755796374475,4.02529109,180.62,180.56,5.05382613]
[1755796374676,4.02529109,180.61,180.58,2.86]
[1755796374876,2.8,180.63,180.58,2.86]
[1755796374877,4.02529109,180.6,180.58,2.86]
[1755796375079,4.02529109,180.59,180.58,2.86]
[1755796375278,4.02529109,180.59,180.53,141.04]
[1755796375481,2.8,180.63,180.56,7.91382613]
[1755796375681,4.02547431,180.62,180.57,5.5385]
[1755796375979,4.02547431,180.62,180.56,7.91382613]
[1755796375980,4.02547431,180.61,180.59,2.86]
[1755796376176,2.99,180.66,180.59,2.86]
[1755796376376,4.02452756,180.65,180.59,2.86]
[1755796376576,7.01452756,180.64,180.59,2.86]
[1755796376777,7.01452756,180.63,180.56,5.05382613]
[1755796376986,4.02452756,180.62,180.56,5.05382613]
[1755796377183,7.01452756,180.61,180.56,5.05382613]
[1755796377377,2.99,180.59,180.54,2.86]
[1755796377777,2.99,180.62,180.53,148.91382613]
[1755796377982,4.02375682,180.61,180.53,148.91382613]
[1755796378181,2.99,180.62,180.53,148.91382613]
[1755796378182,4.02375682,180.6,180.53,148.91382613]
[1755796378391,4.02375682,180.59,180.53,148.91382613]
[1755796378581,4.02266352,180.58,180.53,148.91382613]
[1755796378880,2.99,180.62,180.53,148.91382613]
[1755796379184,4.02266352,180.61,180.53,148.91382613]
[1755796379386,4.02266352,180.6,180.53,7.91382613]
[1755796379586,4.02266352,180.59,180.53,7.91382613]
[1755796379783,4.02266352,180.58,180.53,7.91382613]
[1755796379992,7.01266352,180.57,180.53,5.05382613]
[1755796380289,2.99,180.58,180.5,5.05382613]
[1755796380489,4.01998953,180.57,180.5,5.05382613]
[1755796380691,2.99,180.58,180.5,5.05382613]
[1755796380988,4.02025276,180.57,180.51,2.86]
[1755796381188,2.99,180.55,180.5,5.05382613]
[1755796381388,2.99,180.61,180.5,5.05382613]
[1755796381591,5.05382613,180.58,180.43,2.86]
[1755796381790,5.05382613,180.55,180.43,2.86]
[1755796381989,6.10544736,180.61,180.44,5.05382613]
[1755796381990,2.99,180.53,180.44,5.05382613]
[1755796382190,4.02099903,180.52,180.47,5.05382613]
[1755796382392,2.99,180.57,180.5,2.86]
[1755796382582,4.0208917,180.56,180.5,2.86]
[1755796382787,7.0108917,180.55,180.5,2.86]
[1755796382992,4.0208917,180.54,180.5,2.86]
[1755796383192,4.0208917,180.53,180.5,2.86]
[1755796383397,2.99,180.54,180.5,2.86]
[1755796383584,4.02059422,180.53,180.5,2.86]
[1755796383789,2.99,180.54,180.5,2.86]
[1755796383989,4.02059422,180.53,180.5,2.86]
[1755796384188,2.99,180.54,180.5,2.86]
[1755796384387,4.02060833,180.53,180.46,2.86]
[1755796384693,4.02060833,180.52,180.46,2.86]
[1755796384990,2.99,180.5,180.43,140.94]
[1755796385190,2.99,180.48,180.43,140.94]
[1755796385382,2.99,180.48,180.41,372.56]
[1755796385587,2.99,180.48,180.42,5.5432]
[1755796385782,2.99,180.48,180.41,380.47382613]
[1755796386294,2.99,180.48,180.41,386.01732613]
[1755796387393,2.99,180.48,180.42,5.5431]
[1755796387687,2.99,180.53,180.41,380.47382613]
[1755796387893,4.01513408,180.52,180.41,375.42]
[1755796388088,7.00513408,180.51,180.41,380.47382613]
[1755796388390,4.01513408,180.5,180.41,380.47382613]
[1755796388587,4.01513408,180.5,180.41,386.01712613]
[1755796389393,4.01513408,180.5,180.42,2.86]
[1755796390295,4.01513408,180.5,180.44,5.5426]
[1755796390690,4.01513408,180.5,180.42,2.86]
[1755796390896,4.01513408,180.5,180.43,5.5427]
[1755796391295,4.01513408,180.5,180.42,2.86]
[1755796392598,4.01513408,180.5,180.43,5.5429]
[1755796392897,4.01513408,180.5,180.42,2.86]
[1755796393097,4.01513408,180.5,180.44,5.5424]
[1755796393997,4.01513408,180.5,180.43,5.5429]
[1755796394299,4.01513408,180.5,180.42,2.86]
[1755796394505,2.99,180.49,180.41,372.56]
[1755796394691,2.99,180.47,180.38,2.86]
[1755796394892,4.00061175,180.46,180.38,143.78]
[1755796395099,2.99,180.47,180.38,143.78]
[1755796395404,2.99,180.45,180.38,140.92]
[1755796396195,3.9977913,180.44,180.38,140.92]
[1755796396397,2.99,180.45,180.38,140.92]
[1755796396598,3.99619023,180.44,180.38,140.92]
[1755796396801,2.99,180.43,180.38,143.78]
[1755796396993,2.99,180.47,180.38,140.92]
[1755796397301,2.99,180.45,180.38,140.92]
[1755796397502,3.99591285,180.44,180.38,140.92]
[1755796397700,2.99,180.45,180.38,140.92]
[1755796397900,3.99433826,180.44,180.38,140.92]
[1755796398198,2.99,180.45,180.38,140.92]
[1755796398503,2.99,180.5,180.38,140.92]
[1755796398703,3.99429432,180.49,180.39,2.86]
[1755796398906,3.99429432,180.48,180.4,5.5436]
[1755796399104,3.99429432,180.47,180.4,5.5436]
[1755796399304,2.99,180.5,180.39,7.91382613]
[1755796399494,3.994625,180.49,180.39,7.91382613]
[1755796399701,2.99,180.5,180.4,2.86]
[1755796399902,3.99493289,180.49,180.42,5.05382613]
[1755796400204,2.99,180.54,180.43,2.86]
[1755796400404,3.99452113,180.53,180.43,2.86]
[1755796400597,3.99452113,180.52,180.43,2.86]
[1755796400798,3.99452113,180.51,180.43,2.86]
[1755796401003,3.99452113,180.5,180.43,2.86]
[1755796401207,6.98452113,180.49,180.4,5.05382613]
[1755796401403,6.98452113,180.48,180.39,2.86]
[1755796401704,3.99431307,180.47,180.39,2.86]
[1755796401900,2.99,180.52,180.41,2.86]
[1755796402103,3.99429399,180.51,180.41,2.86]
[1755796402307,3.99429399,180.5,180.41,2.86]
[1755796402509,3.99429399,180.49,180.42,5.5431]
[1755796402803,3.99429399,180.48,180.41,2.86]
[1755796403008,2.99,180.52,180.41,2.86]
[1755796403208,3.99409523,180.51,180.42,5.543]